bitfinex/quotes_ETHUSD_20220311
["timestamp","ask_amount","ask_price","bid_price","bid_amount"]
[1647009108219,1.89919,2632.6,2632.3,0.00416979]
[1647009108420,2.39919,2632.6,2632.3,0.00416979]
[1647009108621,2.39919,2632.6,2631.8,0.07692598]
[1647009108819,2.39919,2632.6,2632.4,0.00416964]
[1647009109021,1.89919,2632.6,2632.4,0.00416964]
[1647009109221,0.94965,2632.6,2632.4,0.00416964]
[1647009109525,0.94965,2632.6,2631.8,1.11499341]
[1647009109962,0.94965,2632.6,2632.4,0.00404059]
[1647009109963,2.0571732,2632.6,2632.4,0.00404059]
[1647009110362,2.0571732,2632.6,2631.5,0.25]
[1647009110363,5.5,2632.5,2631.5,0.25]
[1647009110563,0.94985,2632.2,2631.5,0.25]
[1647009110963,0.00159752,2632.5,2631.5,0.25]
[1647009111163,0.00159752,2632.6,2631.5,0.25]
[1647009111367,1.89914,2632.7,2631.5,0.25]
[1647009111564,0.94949,2632.6,2631.5,0.25]
[1647009111763,0.94975,2632.4,2631.5,0.25]
[1647009111965,1.89958,2632.3,2631.6,0.86226421]
[1647009112168,1.89958,2632.3,2631.5,0.25]
[1647009112363,1.89958,2632.3,2631.1,1.89938]
[1647009112566,0.94979,2632.2,2631.4,0.9497]
[1647009112966,0.94979,2632.2,2631.5,0.25]
[1647009113167,1.89958,2632.2,2631.5,0.31606127]
[1647009113433,1.89958,2632.2,2631.5,0.25]
[1647009113625,1.89958,2632.2,2631.7,0.00438444]
[1647009113823,1.89958,2632.2,2631.7,1.030388]
[1647009114027,1.89958,2632.3,2631.7,1.030388]
[1647009114028,0.94949,2632.6,2631.7,1.030388]
[1647009114224,0.01723979,2632.9,2631.8,0.08486654]
[1647009114427,0.01723979,2632.9,2631.8,1.98373654]
[1647009114428,0.15275193,2632.8,2631.8,1.98373654]
[1647009114627,0.15115441,2632.8,2631.9,0.08601407]
[1647009114834,0.0344481,2632.4,2631.9,0.08601407]
[1647009115027,0.0344481,2632.4,2632.0,0.00438405]
[1647009115028,0.9840181,2632.4,2632.0,0.00438405]
[1647009116030,0.9840181,2632.4,2631.9,0.33601407]
[1647009116230,0.9840181,2632.4,2632.1,0.004384]
[1647009116431,0.9840181,2632.4,2632.1,1.05688327]
[1647009117268,0.9840181,2632.4,2632.1,0.00438394]
[1647009118070,0.9840181,2632.4,2631.3,1.24873822]
[1647009118273,0.9840181,2632.4,2630.3,2.89915]
[1647009118274,1.02572209,2631.9,2631.1,0.96388733]
[1647009118574,3.51280589,2632.3,2631.1,0.96388733]
[1647009118575,2.85157672,2632.2,2631.1,1.21388733]
[1647009118777,4.1448981,2632.4,2631.1,1.21388733]
[1647009118778,0.06680418,2632.1,2631.1,1.21388733]
[1647009118975,0.03604562,2632.4,2631.1,1.21388733]
[1647009118976,0.0344481,2632.4,2631.2,0.05978248]
[1647009119373,0.0344481,2632.4,2631.2,11.64]
[1647009119575,0.0344481,2632.4,2631.1,0.25]
[1647009119576,0.94961,2632.2,2631.1,0.25]
[1647009119775,0.3,2632.2,2631.1,0.25]
[1647009119977,0.06471876,2632.0,2631.1,0.25]
[1647009120173,0.06471876,2632.0,2631.2,0.94978]
[1647009120375,0.06512082,2632.2,2631.1,0.25]
[1647009120576,0.94988,2632.0,2631.3,0.91956082]
[1647009120777,1.02180056,2631.8,2631.3,0.91956082]
[1647009121011,0.06163066,2631.6,2631.0,7.55]
[1647009121212,0.06163066,2631.6,2631.0,7.3]
[1647009121611,6.5,2632.0,2630.5,0.00436906]
[1647009121612,3.5,2632.0,2630.5,0.00436906]
[1647009121814,1.89991,2631.6,2630.5,0.00436906]
[1647009122011,1.89991,2631.6,2630.4,0.25]
[1647009122012,0.83205258,2631.1,2630.4,0.25]
[1647009122213,4.4502975,2631.0,2630.4,0.25]
[1647009122412,4.4502975,2631.0,2629.4,7.3]
[1647009122413,0.06917675,2630.9,2629.4,7.3]
[1647009122619,0.06917675,2630.9,2629.7,1.0]
[1647009122817,0.06775519,2630.8,2629.8,0.25]
[1647009123013,0.06775519,2630.8,2630.0,0.81228487]
[1647009123215,0.98861151,2630.7,2629.8,0.25]
[1647009123413,0.05883179,2630.6,2629.8,0.25]
[1647009124015,1.00912179,2630.6,2629.8,0.25]
[1647009124215,0.06465262,2630.4,2629.8,0.25]
[1647009124416,0.06484272,2630.2,2629.8,0.25]
[1647009124872,0.06484272,2630.2,2630.1,0.00438762]
[1647009125072,0.06484272,2630.2,2629.2,0.01755643]
[1647009125073,2.91657322,2630.2,2629.2,0.01755643]
[1647009125280,0.9507629,2630.0,2629.2,0.01755643]
[1647009125471,1.9015,2629.9,2629.2,0.01755643]
[1647009125672,0.06849419,2629.7,2629.2,0.01755643]
[1647009125876,0.06849419,2629.7,2629.5,1.04551229]
[1647009126071,0.06405987,2630.1,2629.6,0.95033]
[1647009126271,0.06405987,2630.1,2629.5,0.25]
[1647009126472,0.95037,2630.0,2629.5,0.25]
[1647009126675,0.07095474,2629.9,2629.5,0.25]
[1647009127076,0.07095474,2629.9,2629.6,0.95038]
[1647009127275,0.07095474,2629.9,2629.5,0.25]
[1647009127276,0.06049737,2630.4,2629.8,0.96577219]
[1647009127678,0.06049737,2630.4,2629.8,1.26577219]
[1647009128276,0.06049737,2630.4,2630.0,0.00373043]
[1647009128519,1.01070737,2630.4,2630.0,0.00373043]
[1647009128719,0.06012789,2630.2,2630.0,0.95388043]
[1647009129121,0.13383091,2630.9,2630.0,1.25388043]
[1647009129322,0.06251401,2631.7,2630.1,0.05939661]
[1647009129525,0.06251401,2631.7,2630.3,0.25]
[1647009129526,6.35011,2631.7,2630.3,0.25]
[1647009129721,0.95003,2630.8,2630.4,0.94997]
[1647009130324,0.95003,2630.8,2630.3,0.25]
[1647009130325,0.06171391,2630.6,2630.3,0.25]
[1647009130928,0.06724517,2630.8,2630.4,0.95008]
[1647009131328,0.05790594,2631.0,2630.4,1.25008]
[1647009131529,0.05790594,2631.0,2630.4,0.3]
[1647009131729,0.05790594,2631.0,2630.3,1.55]
[1647009131926,0.05790594,2631.0,2630.5,1.89986]
[1647009132386,1.95782594,2631.0,2630.5,2.19986]
[1647009132589,2.85051,2631.1,2630.5,2.19986]
[1647009132590,0.0717784,2630.9,2630.5,2.19986]
[1647009133192,0.0717784,2630.9,2630.5,1.89986]
[1647009133394,0.97291449,2630.8,2630.3,2.15007]
[1647009133591,0.07264383,2630.7,2630.3,0.55]
[1647009133790,0.07264383,2630.7,2630.3,0.25]
[1647009133989,0.07264383,2630.7,2630.3,1.20013]
[1647009134792,0.06731038,2630.5,2630.3,1.50013]
[1647009135092,0.3,2630.8,2630.5,0.95002]
[1647009135399,2.25884719,2630.9,2630.5,0.95002]
[1647009135592,2.25884719,2630.9,2630.5,1.25002]
[1647009136017,0.95002,2630.8,2630.5,0.3]
[1647009136219,0.06329164,2630.6,2630.3,0.25]
[1647009137019,0.95029,2630.5,2630.3,0.25]
[1647009137219,0.95029,2630.5,2630.1,0.3]
[1647009137220,0.06920629,2630.4,2630.1,0.3]
[1647009137418,0.06920629,2630.4,2630.0,0.3043789]
[1647009137419,1.96993629,2630.4,2630.0,0.3043789]
[1647009137619,0.06453776,2630.2,2630.0,0.0043789]
[1647009138021,0.06453776,2630.2,2630.0,0.00811827]
[1647009138219,0.06453776,2630.2,2630.0,0.00373937]
[1647009138426,0.07240175,2630.1,2630.0,0.00373937]
[1647009139020,1.02272175,2630.1,2629.9,0.95029]
[1647009139221,1.02272175,2630.1,2629.9,0.3]
[1647009139222,0.05731498,2630.0,2629.9,0.3]
[1647009139420,0.05731498,2630.0,2629.9,0.30373935]
[1647009139668,0.05731498,2630.0,2629.9,0.00373935]
[1647009139872,0.05731498,2630.0,2629.9,0.30373935]
[1647009140072,0.05731498,2630.0,2629.9,0.3]
[1647009140273,0.05731498,2630.0,2629.7,0.55]
[1647009140473,1.00771498,2630.0,2629.8,0.00373945]
[1647009141281,1.00398489,2630.0,2629.6,2.45059]
[1647009141476,1.00398489,2630.0,2629.7,0.95038]
[1647009141673,1.00398489,2630.0,2629.8,0.00375599]
[1647009142475,1.00398489,2630.0,2629.6,0.25]
[1647009142674,2.85108,2630.7,2629.7,0.95041]
[1647009142877,0.05713345,2631.4,2629.8,0.07207381]
[1647009143077,0.05713345,2631.4,2630.1,1.89992]
[1647009143275,0.05713345,2631.4,2630.4,0.25]
[1647009143524,0.0619435,2631.3,2630.4,0.25]
[1647009143824,0.94992,2631.4,2630.4,0.25]
[1647009143825,0.05845575,2631.4,2630.7,1.08927755]
[1647009144022,0.05845575,2631.4,2630.7,2.33922755]
[1647009144219,0.05845575,2631.4,2630.8,0.9499583]
[1647009144423,0.0495117,2631.6,2630.8,3.0998583]
[1647009144619,0.0495117,2631.6,2630.9,0.3]
[1647009144827,0.01225521,2632.6,2630.9,0.37065543]
[1647009144828,0.00157302,2632.3,2630.9,0.37065543]
[1647009145026,0.00157302,2632.3,2631.0,1.60488037]
[1647009145224,0.15857304,2632.9,2631.4,0.25]
[1647009145225,0.00157302,2632.8,2631.4,0.25]
[1647009145424,0.00157302,2632.8,2631.5,1.00754918]
[1647009145425,0.92689076,2632.3,2631.5,1.00754918]
[1647009145623,0.92689076,2632.3,2631.5,1.30754918]
[1647009145624,0.01626504,2631.8,2631.5,1.30754918]
[1647009145824,0.01626504,2631.8,2631.7,1.89929]
[1647009146023,0.01626504,2631.8,2631.7,2.19929]
[1647009146625,0.07599724,2632.2,2631.7,2.19929]
[1647009146825,0.07599724,2632.2,2631.8,0.9496422]
[1647009147279,0.01626388,2632.2,2631.9,0.3]
[1647009147480,0.04825839,2632.6,2631.9,2.44907]
[1647009147678,0.02738472,2632.6,2631.9,2.14907]
[1647009147881,0.02738472,2632.6,2631.9,4.9976269]
[1647009147882,0.0162625,2632.5,2631.9,4.9976269]
[1647009148081,0.0162625,2632.5,2631.9,5.2976269]
[1647009148281,0.0162625,2632.5,2632.0,1.24954]
[1647009148480,0.07308928,2632.5,2631.9,1.25]
[1647009148684,0.07308928,2632.5,2631.9,1.0]
[1647009148879,0.07308928,2632.5,2631.8,0.25]
[1647009149086,0.94975,2632.4,2631.8,0.25]
[1647009149283,0.04989276,2632.3,2631.8,0.25]
[1647009149481,0.83306968,2632.1,2631.8,0.25]
[1647009150284,0.04989276,2632.3,2631.8,0.25]
[1647009150682,0.01615734,2632.6,2631.8,0.25]
[1647009150683,0.31615734,2632.6,2631.8,0.25]
[1647009150921,0.01615734,2632.6,2631.8,0.25]
[1647009151122,0.89159591,2632.2,2631.8,0.25]
[1647009151325,0.05477195,2632.1,2631.9,0.94966]
[1647009152225,0.05477195,2632.1,2631.9,1.8992849]
[1647009152624,0.0555159,2632.3,2631.9,1.8992849]
[1647009152826,1.89939,2632.5,2632.1,0.94956]
[1647009152827,0.04546434,2632.5,2632.1,0.94956]
[1647009154333,0.04546434,2632.5,2632.0,1.89909]
[1647009154334,0.01890492,2632.8,2631.8,1.94971]
[1647009154667,2.84921,2632.9,2631.8,1.94971]
[1647009154668,0.05833594,2632.7,2631.8,1.94971]
[1647009154868,0.05833594,2632.7,2631.8,0.94971]
[1647009155070,0.94972,2632.2,2631.8,0.94971]
[1647009155369,0.04842839,2632.1,2631.8,0.94971]
[1647009155771,0.04842839,2632.1,2631.8,1.24971]
[1647009155968,0.00157302,2632.8,2631.8,1.24971]
[1647009156168,0.01560227,2632.5,2631.8,1.24971]
[1647009156774,0.94642947,2632.1,2631.8,0.94971]
[1647009156976,0.05594095,2632.0,2631.7,0.25]
[1647009157170,0.05566862,2632.4,2631.7,0.25]
[1647009157771,2.19974,2632.3,2631.7,0.25]
[1647009157972,0.94993,2632.0,2631.7,0.25]
[1647009158175,0.0514646,2631.9,2631.7,0.25]
[1647009158416,1.10280397,2632.2,2631.7,0.25]
[1647009158417,0.04750278,2632.1,2631.7,0.25]
[1647009159317,0.99733278,2632.1,2631.7,0.25]
[1647009159521,0.05426132,2631.9,2631.7,0.25]
[1647009160023,1.24983,2632.1,2631.0,0.25]
[1647009160024,0.05675714,2631.6,2631.0,0.25]
[1647009160220,0.05260955,2631.9,2631.0,0.25]
[1647009160421,0.05260955,2631.9,2631.0,0.55]
[1647009160721,0.05260955,2631.9,2631.0,0.25]
[1647009160920,0.05260955,2631.9,2631.0,0.55]
[1647009161123,1.90369202,2631.8,2631.1,1.899883]
[1647009161423,0.04659487,2631.7,2631.2,0.3]
[1647009161820,0.01624616,2632.0,2631.1,2.19971]
[1647009162027,1.00406028,2632.8,2631.1,2.19971]
[1647009162028,0.0493182,2632.2,2631.2,0.94986]
[1647009162275,3.5,2632.8,2631.3,1.0307654]
[1647009162276,0.01624616,2632.0,2631.3,1.0307654]
[1647009162476,0.01624616,2632.0,2631.3,0.3808816]
[1647009162675,0.01624616,2632.0,2631.4,1.89937]
[1647009162874,0.01624616,2632.0,2631.5,0.90137345]
[1647009163074,0.85420739,2632.4,2631.5,0.90137345]
[1647009163075,0.05164214,2632.3,2631.5,0.90137345]
[1647009163276,0.9498,2632.2,2631.6,1.1997731]
[1647009163479,0.05724429,2632.1,2631.6,1.1997731]
[1647009164075,0.04764866,2632.7,2631.6,1.1997731]
[1647009164277,3.961,2633.0,2631.6,1.1997731]
[1647009164278,0.04562375,2632.9,2631.6,1.1997731]
[1647009164680,0.94961,2632.6,2631.9,0.9496425]
[1647009164878,0.94961,2632.6,2631.9,1.2496425]
[1647009164879,0.0592567,2632.5,2631.9,1.2496425]
[1647009165179,0.00598848,2632.4,2631.9,2.15705157]
[1647009165777,0.00598848,2632.4,2631.9,3.10670157]
[1647009166015,0.00598847,2632.7,2631.9,3.10670157]
[1647009166215,0.00598847,2632.7,2631.9,5.05621157]
[1647009166516,0.00598847,2632.7,2632.1,0.9495889]
[1647009166714,0.04962023,2632.8,2632.2,0.3]
[1647009166715,0.04812316,2632.8,2632.2,0.3]
[1647009167115,0.94956,2632.7,2632.1,0.25]
[1647009167326,0.94956,2632.7,2631.5,1.0]
[1647009167327,5.07741626,2632.6,2631.5,0.25]
[1647009167517,0.05050075,2632.4,2631.5,0.25]
[1647009167718,0.05050075,2632.4,2630.5,0.89594097]
[1647009167719,3.0,2632.1,2630.5,0.25]
[1647009167922,0.01278534,2631.8,2630.5,0.25]
[1647009168117,0.85903548,2631.4,2630.5,1.09592525]
[1647009168319,0.16062354,2632.1,2630.6,0.25]
[1647009168521,3.54964464,2632.4,2631.4,0.01267453]
[1647009168522,1.83196235,2631.7,2631.4,0.01267453]
[1647009168722,0.01765889,2632.6,2631.4,0.10025684]
[1647009168919,0.01765889,2632.6,2631.9,0.0125496]
[1647009169323,0.01765889,2632.6,2632.3,0.89724345]
[1647009169773,0.01765889,2632.6,2632.3,1.19724345]
[1647009169978,0.01765889,2632.6,2632.3,0.89724345]
[1647009170167,0.00397006,2632.8,2632.3,0.89724345]
[1647009170370,0.00397006,2632.8,2632.3,1.19724345]
[1647009170569,0.0457337,2632.9,2632.3,1.19724345]
[1647009170768,0.9952537,2632.9,2632.3,1.19724345]
[1647009170968,0.04975314,2632.7,2632.3,1.19724345]
[1647009171168,0.04975314,2632.7,2632.3,0.89724345]
[1647009171869,0.99932314,2632.7,2632.2,0.25]
[1647009172070,0.04692935,2632.6,2632.2,0.25]
[1647009172269,0.00377466,2632.8,2632.2,0.25]
[1647009172871,0.00377466,2632.8,2632.5,1.13813017]
[1647009173272,0.00763797,2632.8,2632.5,1.13813017]
[1647009173519,0.00386331,2632.8,2632.5,1.13813017]
[1647009173916,0.00386331,2632.8,2632.5,1.43813017]
[1647009174117,0.13383091,2633.3,2632.6,0.08753245]
[1647009174720,0.00391301,2632.8,2632.6,0.08753245]
[1647009175324,0.00391301,2632.8,2632.2,0.33750158]
[1647009175524,0.04255064,2633.1,2632.2,0.25]
[1647009175525,1.56500662,2633.0,2632.2,0.25]
[1647009175722,0.00391298,2632.8,2632.2,0.25]
[1647009176122,0.94963,2632.7,2632.2,0.25]
[1647009176323,0.94963,2632.7,2632.2,1.34305076]
[1647009176924,0.05386007,2632.6,2632.2,1.34305076]
[1647009177566,0.00148,2632.8,2632.2,1.34305076]
[1647009177771,0.04970264,2632.8,2632.2,1.34305076]
[1647009178166,0.05411571,2632.8,2632.2,0.25]
[1647009178469,0.04868602,2632.6,2632.2,0.25]
[1647009179168,0.04868602,2632.6,2632.5,1.10724933]
[1647009179471,0.04868602,2632.6,2632.2,0.25]
[1647009180672,0.0464191,2632.5,2632.2,0.25]
[1647009182027,0.00157302,2633.1,2632.2,0.25]
[1647009182226,0.13540393,2633.3,2632.2,0.25]
[1647009182425,0.13383091,2633.3,2632.2,0.25]
[1647009182629,0.86447011,2633.1,2632.3,1.0715712]
[1647009182830,0.86447011,2633.1,2632.4,0.08492112]
[1647009182831,0.94948,2633.0,2632.4,0.08492112]
[1647009183027,0.94948,2633.0,2632.2,0.32281066]
[1647009183228,0.94948,2633.0,2632.2,2.52175286]
[1647009183429,0.94948,2633.0,2632.4,0.07217041]
[1647009184028,0.94948,2633.0,2632.2,0.55]
[1647009184029,12.58948,2633.0,2632.2,0.25]
[1647009184229,1.89716525,2632.7,2632.2,0.25]
[1647009184873,0.94965,2632.7,2632.2,0.25]
[1647009186572,0.94965,2632.7,2632.0,0.07226229]
[1647009186774,0.94965,2632.7,2631.8,0.25]
[1647009186775,12.58965,2632.7,2631.8,0.25]
[1647009186975,12.58965,2632.7,2630.9,0.08618075]
[1647009186976,0.94989,2632.2,2630.9,0.08618075]
[1647009187174,0.01227251,2632.3,2630.9,0.08618075]
[1647009187175,0.05055736,2632.0,2630.9,0.08618075]
[1647009187376,0.47327251,2632.3,2631.4,0.87352198]
[1647009187377,0.23168649,2632.2,2631.4,0.87352198]
[1647009187573,0.88970465,2632.3,2631.4,0.87352198]
[1647009187574,0.88970465,2632.3,2631.5,0.07607052]
[1647009187776,1.0,2632.2,2631.5,0.07607052]
[1647009187978,0.00589392,2632.1,2631.5,0.07607052]
[1647009188173,0.95563392,2632.1,2631.5,0.07607052]
[1647009188621,0.94974,2632.1,2631.5,0.07607052]
[1647009189321,0.94974,2632.1,2631.6,0.3]
[1647009189725,0.94974,2632.1,2631.4,0.00652222]
[1647009190226,0.94974,2632.1,2631.4,0.95624802]
[1647009190428,0.94974,2632.1,2631.5,0.07544516]
[1647009191830,2.89943,2632.2,2631.5,0.07544516]
[1647009192029,1.0,2632.2,2631.5,0.94967]
[1647009192274,1.0,2632.2,2631.6,0.0803901]
[1647009192474,1.0,2632.2,2631.7,0.94964]
[1647009192875,1.0,2632.2,2631.9,1.03225065]
[1647009193075,1.0,2632.2,2632.0,0.07118708]
[1647009193775,1.0,2632.2,2631.5,2.89927]
[1647009193776,1.94975,2632.2,2631.8,0.07260188]
[1647009193975,1.94975,2632.2,2631.6,0.07885628]
[1647009194576,1.94975,2632.2,2631.6,1.02854628]
[1647009194776,0.034285,2632.0,2631.8,1.08259992]
[1647009195379,0.034285,2632.0,2631.6,0.07885628]
[1647009196219,0.034285,2632.0,2631.7,0.08337609]
[1647009196422,0.034285,2632.0,2631.8,0.92655557]
[1647009196619,0.034285,2632.0,2631.7,0.08337609]
[1647009197119,0.034285,2632.0,2631.5,0.08429314]
[1647009197321,7.0,2631.9,2631.1,0.31618949]
[1647009197521,0.91641149,2631.8,2631.1,0.31618949]
[1647009197719,0.08613641,2632.0,2631.0,8.24301427]
[1647009197720,0.04702042,2631.7,2631.0,8.24301427]
[1647009197919,1.0,2631.5,2631.0,8.24301427]
[1647009198519,1.0,2631.5,2631.0,9.19290427]
[1647009198919,0.04262657,2631.7,2631.0,9.19290427]
[1647009199319,0.04262657,2631.7,2631.0,9.54301427]
[1647009199522,0.04262657,2631.7,2631.0,10.49280427]
[1647009199778,0.07709835,2631.9,2631.2,0.94981]
[1647009199980,0.09322914,2631.9,2631.3,0.08728757]
[1647009200378,0.05038697,2631.9,2631.3,0.08728757]
[1647009200882,0.05038697,2631.9,2631.2,0.3]
[1647009200883,0.03425618,2631.9,2631.2,0.3]
[1647009201077,0.04931493,2631.8,2631.2,0.3]
[1647009201278,0.04931493,2631.8,2631.1,3.19949]
[1647009201681,0.04931493,2631.8,2631.1,2.19949]
[1647009201877,0.04931493,2631.8,2631.1,3.19949]
[1647009202680,0.04931493,2631.8,2631.1,2.19949]
[1647009202979,0.04931493,2631.8,2631.1,3.19949]
[1647009203440,0.04931493,2631.8,2631.1,2.19949]
[1647009203636,0.04931493,2631.8,2631.3,0.94985]
[1647009203833,0.04931493,2631.8,2631.3,1.24985]
[1647009204034,0.04931493,2631.8,2631.3,0.3]
[1647009204234,0.04931493,2631.8,2631.1,2.19949]
[1647009204434,0.04931493,2631.8,2631.1,3.19949]
[1647009205641,0.04931493,2631.8,2631.1,2.19949]
[1647009205840,0.04931493,2631.8,2631.1,3.19949]
[1647009206043,0.04931493,2631.8,2631.2,1.09227086]
[1647009206440,0.04931493,2631.8,2631.2,2.04215086]
[1647009206841,0.04931493,2631.8,2631.3,0.3]
[1647009207269,0.04931493,2631.8,2631.2,4.29200086]
[1647009207469,1.01618401,2632.0,2631.2,4.29200086]
[1647009207470,1.01618401,2632.0,2631.3,0.07453491]
[1647009207671,1.01618401,2632.0,2631.4,0.94982]
[1647009208069,0.05272576,2632.2,2631.4,0.94982]
[1647009208470,0.06774455,2632.2,2631.4,1.24982]
[1647009208970,0.06774455,2632.2,2631.5,3.5]
[1647009209175,0.06774455,2632.2,2631.6,0.94965]
[1647009209370,2.1531,2632.3,2631.6,1.02579888]
[1647009209671,0.04279136,2632.5,2631.6,1.02579888]
[1647009209875,1.56505717,2632.4,2631.6,1.02579888]
[1647009210074,2.67965523,2632.4,2631.6,1.02579888]
[1647009210276,0.04279136,2632.5,2631.6,1.02579888]
[1647009210475,0.04949684,2632.7,2631.7,0.94963]
[1647009210680,0.04949684,2632.7,2631.8,3.5]
[1647009210933,24.34089352,2633.2,2631.8,3.5]
[1647009210934,0.00157302,2633.2,2631.9,1.96920056]
[1647009211134,0.00157302,2633.3,2632.4,3.0]
[1647009211331,0.00157302,2633.6,2633.1,1.03081666]
[1647009211552,1.56595205,2633.7,2633.2,0.07021578]
[1647009211728,1.56437903,2633.7,2633.2,0.07021578]
[1647009211930,0.94086661,2633.8,2633.2,0.07021578]
[1647009212129,1.56435563,2633.7,2633.2,0.07021578]
[1647009212531,1.56435563,2633.7,2632.9,0.07815675]
[1647009212732,0.00404137,2633.5,2632.9,0.07815675]
[1647009212933,0.00404137,2633.5,2632.6,0.36938918]
[1647009213132,0.00404137,2633.5,2632.6,0.66938918]
[1647009213336,0.94941,2633.5,2632.6,0.06938918]
[1647009213532,0.00419825,2633.3,2632.6,0.06938918]
[1647009213935,0.00419825,2633.3,2632.6,1.01873918]
[1647009214131,0.00419825,2633.3,2632.7,0.08917761]
[1647009214132,0.90417485,2632.9,2632.7,0.08917761]
[1647009214335,0.90417485,2632.9,2632.3,0.08657922]
[1647009214534,0.90417485,2632.9,2632.1,0.08265004]
[1647009214780,0.90417485,2632.9,2631.8,0.08010218]
[1647009214980,0.90417485,2632.9,2631.8,1.02974218]
[1647009215178,0.90417485,2632.9,2631.9,0.0875703]
[1647009215782,0.90417485,2632.9,2631.6,1.89922]
[1647009215783,13.24933215,2632.8,2631.6,1.89922]
[1647009215980,13.24933215,2632.8,2631.5,2.50399129]
[1647009215981,14.64,2632.6,2631.5,2.50399129]
[1647009216180,11.64,2632.4,2631.5,2.50399129]
[1647009216482,0.05717898,2632.3,2631.3,0.94983]
[1647009216881,0.84264664,2631.5,2631.3,0.94983]
[1647009217281,2.06847898,2632.3,2631.3,0.94983]
[1647009217481,0.051755,2632.2,2631.3,1.8996297]
[1647009217682,0.051755,2632.2,2631.4,0.9498]
[1647009218526,0.051755,2632.2,2631.4,1.2498]
[1647009218730,0.0136561,2632.3,2631.6,1.89902]
[1647009218925,0.0136561,2632.3,2631.6,1.2495]
[1647009219132,0.0136561,2632.3,2631.7,0.07261327]
[1647009219626,0.0136561,2632.3,2631.8,0.19393037]
[1647009219831,0.0136561,2632.3,2631.9,0.08096402]
[1647009220029,0.860424,2632.5,2631.9,0.08096402]
[1647009220030,0.8740801,2632.5,2631.9,0.08096402]
[1647009220833,0.8740801,2632.5,2631.9,1.03058402]
[1647009221231,0.860424,2632.5,2631.9,1.98015402]
[1647009221535,0.01534757,2632.6,2632.3,0.5]
[1647009221931,0.01534757,2632.6,2632.4,0.94944]
[1647009222180,0.04671478,2633.0,2632.3,0.5]
[1647009222370,1.19567302,2633.3,2632.3,0.5]
[1647009222371,0.05534079,2633.2,2632.3,0.5]
[1647009222573,1.11252306,2632.4,2632.3,0.5]
[1647009222790,1.11252306,2632.4,2631.6,1.31048795]
[1647009222791,1.16911717,2632.4,2631.6,1.229]
[1647009222971,1.16911717,2632.4,2631.5,0.31628573]
[1647009222972,0.05410672,2632.3,2631.5,0.31628573]
[1647009223171,0.05410672,2632.3,2631.5,0.06628573]
[1647009223571,0.29248377,2631.8,2631.5,0.06628573]
[1647009223771,0.29248377,2631.8,2631.3,1.8994168]
[1647009223971,0.29248377,2631.8,2631.4,0.9498]
[1647009224173,0.05410672,2632.3,2631.4,3.7988965]
[1647009224375,0.01676556,2632.2,2631.4,2.8490965]
[1647009225376,0.91616559,2632.4,2631.5,0.97314877]
[1647009225578,0.91616559,2632.4,2631.7,0.9495129]
[1647009225777,0.91616559,2632.4,2631.8,1.89913]
[1647009225778,0.01676494,2632.3,2631.8,1.89913]
[1647009226729,0.04961135,2632.6,2631.9,0.9495626]
[1647009226933,0.04961135,2632.6,2632.0,1.89883]
[1647009226934,0.06637525,2632.6,2632.0,1.89883]
[1647009227329,0.06637525,2632.6,2632.0,2.19883]
[1647009227527,0.0167639,2632.6,2632.0,2.19883]
[1647009227927,1.05341194,2632.7,2632.0,2.19883]
[1647009228328,1.05341194,2632.7,2632.1,0.94944]
[1647009228929,0.05718217,2632.8,2632.3,0.9494526]
[1647009229329,0.06107042,2632.8,2632.3,0.9494526]
[1647009229981,0.84203759,2632.7,2632.3,0.9494526]
[1647009230176,0.84203759,2632.7,2632.2,1.01923636]
[1647009230376,0.84203759,2632.7,2632.3,0.94945]
[1647009230978,0.05792609,2632.6,2631.9,1.8990254]
[1647009231181,0.56296924,2632.3,2631.9,0.3]
[1647009231383,0.56296924,2632.3,2631.6,4.88183515]
[1647009231384,0.56296924,2632.3,2631.8,1.0]
[1647009231581,0.56296924,2632.3,2631.7,0.94969]
[1647009232184,0.56296924,2632.3,2631.7,1.8993443]
[1647009232583,0.56296924,2632.3,2631.7,0.94969]
[1647009232785,0.84203759,2631.9,2631.4,0.25]
[1647009232984,0.84203759,2631.9,2631.4,0.06675542]
[1647009233827,0.05450089,2632.3,2631.4,3.56675542]
[1647009234029,0.9497471,2632.8,2631.6,0.94971]
[1647009234030,0.01564617,2632.2,2631.6,0.94971]
[1647009234228,0.01564617,2632.2,2631.6,3.1488]
[1647009234633,0.01564617,2632.2,2631.6,4.1488]
[1647009235032,1.09867109,2632.1,2631.6,1.89909]
[1647009235434,1.14776324,2632.1,2631.6,1.89909]
[1647009236235,1.14776324,2632.1,2631.7,0.9496765]
[1647009236434,1.14776324,2632.1,2631.7,1.8993465]
[1647009236634,1.14776324,2632.1,2631.7,2.8490065]
[1647009237034,1.14776324,2632.1,2631.7,1.8993465]
[1647009237275,1.14776324,2632.1,2631.7,0.94967]
[1647009237679,1.14776324,2632.1,2631.7,1.89932]
[1647009237882,0.01589574,2632.4,2631.8,3.5]
[1647009238080,0.01589574,2632.4,2631.8,0.3]
[1647009238281,0.01589574,2632.4,2632.0,0.94945]
[1647009238684,0.01589574,2632.4,2632.0,0.94947]
[1647009238883,0.87520437,2632.2,2632.0,0.94947]
[1647009240190,0.82518323,2632.2,2632.0,0.94947]
[1647009240586,0.82518323,2632.2,2631.8,1.89889]
[1647009240788,0.05826151,2632.1,2631.8,1.89889]
[1647009243628,0.05826151,2632.1,2631.6,1.8994]
[1647009243827,0.05826151,2632.1,2631.3,1.89939]
[1647009243828,0.05826151,2632.1,2631.5,0.3]
[1647009244029,0.05826151,2632.1,2631.4,2.49948]
[1647009244229,0.05826151,2632.1,2631.4,2.19948]
[1647009244428,0.05826151,2632.1,2631.5,0.94978]
[1647009245880,0.05826151,2632.1,2631.5,2.8491895]
[1647009246080,0.05826151,2632.1,2631.6,0.94973]
[1647009247082,0.05826151,2632.1,2631.7,0.9496555]
[1647009247281,0.05826151,2632.1,2631.7,1.8992955]
[1647009247788,0.05826151,2632.1,2631.7,2.1992955]
[1647009247988,0.016209,2632.4,2631.7,2.1992955]
[1647009248184,0.016209,2632.4,2631.9,0.9495567]
[1647009248423,0.016209,2632.4,2631.9,1.8991867]
[1647009248626,0.0162088,2632.4,2631.9,1.8991867]
[1647009249425,0.05444585,2632.6,2631.9,1.8991867]